bitfinex/quotes_BTCUSD_20241018
["timestamp","ask_amount","ask_price","bid_price","bid_amount"]
[1729216186855,0.30904315,67988.0,67987.0,0.003654]
[1729216187076,0.17495915,67988.0,67987.0,0.003654]
[1729216188232,0.17495915,67988.0,67987.0,0.15074]
[1729216188457,0.17495915,67988.0,67987.0,0.003654]
[1729216189830,0.17495915,67988.0,67987.0,0.15074]
[1729216190046,0.026,67988.0,67987.0,0.15074]
[1729216190496,0.026,67988.0,67987.0,0.15274]
[1729216190739,0.013,67988.0,67987.0,0.15174]
[1729216190963,0.013,67988.0,67987.0,0.18379058]
[1729216191193,0.017,67988.0,67987.0,0.18379058]
[1729216191423,0.013,67988.0,67987.0,0.18379058]
[1729216192133,0.000827,67993.0,67992.0,0.149076]
[1729216192394,0.000827,67993.0,67992.0,0.15940309]
[1729216192849,0.000827,67993.0,67992.0,0.16140309]
[1729216193071,0.000827,67993.0,67992.0,0.15940309]
[1729216194195,0.000827,67993.0,67992.0,0.16140309]
[1729216194406,0.000827,67993.0,67992.0,0.16540309]
[1729216194834,0.000827,67993.0,67992.0,0.23910309]
[1729216195757,0.000827,67993.0,67992.0,0.46641588]
[1729216195985,0.000827,67993.0,67992.0,0.48185007]
[1729216196214,0.000827,67993.0,67992.0,0.50650461]
[1729216196405,0.000827,67993.0,67992.0,0.48185007]
[1729216196627,0.000827,67993.0,67992.0,0.47785007]
[1729216197075,0.002827,67993.0,67992.0,0.49185007]
[1729216197294,0.001827,67993.0,67992.0,0.48485007]
[1729216197735,0.002827,67993.0,67992.0,0.49885007]
[1729216198417,0.001827,67993.0,67992.0,0.459776]
[1729216198653,0.001827,67993.0,67992.0,0.49183524]
[1729216198872,0.002827,67993.0,67992.0,0.50583524]
[1729216200742,0.002827,67993.0,67992.0,0.26110642]
[1729216200976,0.002827,67993.0,67992.0,0.253776]
[1729216201233,0.002827,67993.0,67992.0,0.48841993]
[1729216201461,0.002827,67993.0,67992.0,0.26610714]
[1729216201700,0.002827,67993.0,67992.0,0.26810714]
[1729216202155,0.002827,67993.0,67992.0,0.28783537]
[1729216202592,0.002827,67993.0,67992.0,0.51803537]
[1729216204109,0.002827,67993.0,67992.0,0.542698]
[1729216204344,0.002827,67993.0,67992.0,0.54265994]
[1729216204560,0.002827,67993.0,67992.0,0.51801461]
[1729216205003,0.001827,67993.0,67992.0,4.50401461]
[1729216205293,0.002827,67993.0,67992.0,4.69161909]
[1729216205972,0.001827,67993.0,67992.0,4.67761909]
[1729216206430,0.001827,67993.0,67992.0,4.69161909]
[1729216206650,0.001827,67993.0,67992.0,4.54265994]
[1729216207097,0.001827,67993.0,67992.0,4.51801461]
[1729216207831,0.001827,67993.0,67992.0,4.51966861]
[1729216208314,0.001827,67993.0,67992.0,4.11567649]
[1729216208315,0.15078615,67993.0,67992.0,4.11567649]
[1729216208545,0.32957554,67993.0,67992.0,4.103354]
[1729216208773,0.15078615,67993.0,67992.0,4.103354]
[1729216209243,0.14978615,67993.0,67992.0,4.075354]
[1729216209472,0.14978615,67993.0,67992.0,4.103354]
[1729216209709,0.14978615,67993.0,67992.0,4.089354]
[1729216210203,0.14978615,67993.0,67992.0,4.090354]
[1729216210442,0.14978615,67993.0,67992.0,4.089354]
[1729216210663,0.14978615,67993.0,67992.0,4.090354]
[1729216211112,0.14978615,67993.0,67992.0,4.22243]
[1729216211365,0.000827,67993.0,67992.0,4.22243]
[1729216211588,0.002827,67993.0,67992.0,4.22343]
[1729216212058,0.000827,67993.0,67992.0,4.22243]
[1729216212547,0.002827,67993.0,67992.0,4.22343]
[1729216213011,0.000827,67993.0,67992.0,4.22243]
[1729216213227,0.000827,67993.0,67992.0,4.22343]
[1729216213453,0.29685915,67993.0,67992.0,4.075354]
[1729216213672,0.38775716,67993.0,67992.0,4.075354]
[1729216213906,0.45376602,67993.0,67992.0,4.076354]
[1729216214132,0.38586801,67993.0,67992.0,4.076354]
[1729216214589,0.48230358,67993.0,67992.0,4.075354]
[1729216214809,0.31985915,67993.0,67992.0,4.077344]
[1729216215027,0.33875633,67993.0,67992.0,4.088344]
[1729216215254,0.50118945,67993.0,67992.0,4.088344]
[1729216215480,0.50118945,67993.0,67992.0,4.078344]
[1729216215700,0.48229227,67993.0,67992.0,4.078344]
[1729216215917,0.48429227,67993.0,67992.0,4.079344]
[1729216216140,0.57229552,67993.0,67992.0,4.078344]
[1729216216389,0.57229552,67993.0,67992.0,4.079344]
[1729216216390,0.48429227,67993.0,67992.0,4.079344]
[1729216216850,0.57228353,67993.0,67992.0,4.079344]
[1729216217316,0.63325142,67993.0,67992.0,4.079344]
[1729216217528,0.57227441,67993.0,67992.0,4.079344]
[1729216217973,0.65067,67993.0,67992.0,4.079344]
[1729216218238,0.55421827,67993.0,67992.0,4.079344]
[1729216218462,0.48823688,67993.0,67992.0,4.079344]
[1729216218697,0.32185915,67993.0,67992.0,4.079344]
[1729216218916,0.21877108,67993.0,67992.0,4.079344]
[1729216219143,0.36384408,67993.0,67992.0,4.077344]
[1729216219382,0.31985915,67993.0,67992.0,4.077344]
[1729216219615,0.18678615,67993.0,67992.0,4.077344]
[1729216219835,0.16378615,67993.0,67992.0,4.077344]
[1729216220064,0.014827,67993.0,67992.0,4.078344]
[1729216220356,0.014827,67993.0,67992.0,4.22942]
[1729216220813,0.014827,67993.0,67992.0,4.30752]
[1729216221031,0.014827,67993.0,67992.0,4.30652]
[1729216221032,0.000827,67993.0,67992.0,4.30652]
[1729216221265,0.013827,67993.0,67992.0,4.30752]
[1729216221497,0.013827,67993.0,67992.0,4.31984176]
[1729216221747,0.000827,67993.0,67992.0,4.31884176]
[1729216222204,0.001827,67993.0,67992.0,4.33284176]
[1729216222444,0.001827,67993.0,67992.0,4.34384176]
[1729216222660,0.000827,67993.0,67992.0,4.31884176]
[1729216222908,0.000827,67993.0,67992.0,4.34284176]
[1729216223130,0.001827,67993.0,67992.0,4.35684176]
[1729216223393,0.001827,67993.0,67992.0,4.34284176]
[1729216223630,0.001827,67993.0,67992.0,4.35584176]
[1729216223873,0.001827,67993.0,67992.0,4.34484176]
[1729216224326,0.001827,67993.0,67992.0,4.35884176]
[1729216224804,0.000827,67993.0,67992.0,4.34484176]
[1729216225287,0.001827,67993.0,67992.0,4.54765446]
[1729216225531,0.001827,67993.0,67992.0,4.53365446]
[1729216225760,0.000827,67993.0,67992.0,4.53365446]
[1729216226014,0.001827,67993.0,67992.0,4.54565446]
[1729216226500,0.001827,67993.0,67992.0,4.51765446]
[1729216226501,0.000827,67993.0,67992.0,4.51765446]
[1729216227007,0.001827,67993.0,67992.0,4.53165446]
[1729216227487,0.001827,67993.0,67992.0,4.54565352]
[1729216227737,0.001827,67993.0,67992.0,4.54765352]
[1729216228451,0.001827,67993.0,67992.0,4.52794176]
[1729216228688,0.001827,67993.0,67992.0,7.51794176]
[1729216229836,0.001827,67993.0,67992.0,7.33684176]
[1729216230055,0.001827,67993.0,67992.0,7.32452]
[1729216230282,0.001827,67993.0,67992.0,7.33684229]
[1729216231122,0.001827,67993.0,67992.0,7.33684318]
[1729216231888,0.001827,67993.0,67992.0,7.34151286]
[1729216232105,0.001827,67993.0,67992.0,7.34344983]
[1729216232495,0.001827,67993.0,67992.0,7.35344983]
[1729216232692,0.001827,67993.0,67992.0,7.35544983]
[1729216233254,0.001827,67993.0,67992.0,7.37516568]
[1729216237870,0.001827,67993.0,67992.0,7.37316568]
[1729216238092,0.001827,67993.0,67992.0,7.37516568]
[1729216238808,0.001827,67993.0,67992.0,7.37518867]
[1729216242725,0.001827,67993.0,67992.0,7.37519269]
[1729216242940,0.001827,67993.0,67992.0,7.37519779]
[1729216246538,0.001827,67993.0,67992.0,7.57602236]
[1729216246984,0.001827,67993.0,67992.0,6.47602236]
[1729216250414,0.001827,67993.0,67992.0,6.47618028]
[1729216250885,0.001827,67993.0,67992.0,6.47418028]
[1729216251115,0.001827,67993.0,67992.0,6.30008028]
[1729216252286,0.001827,67993.0,67992.0,6.29808028]
[1729216253170,0.001827,67993.0,67992.0,6.30008028]
[1729216253615,0.001827,67993.0,67992.0,6.29808028]
[1729216254057,0.001827,67993.0,67992.0,6.28808028]
[1729216254316,0.001827,67993.0,67992.0,6.18621769]
[1729216254539,0.001827,67993.0,67992.0,6.18623689]
[1729216255352,0.001827,67993.0,67992.0,6.19623689]
[1729216255905,0.001827,67993.0,67992.0,6.18623689]
[1729216257195,0.001827,67993.0,67992.0,6.19123689]
[1729216257427,0.001827,67993.0,67992.0,6.27443689]
[1729216257632,0.001827,67993.0,67992.0,6.29920599]
[1729216262278,0.001827,67993.0,67992.0,6.45901717]
[1729216262488,0.000827,68008.0,68007.0,0.147043]
[1729216262711,0.000827,68008.0,68007.0,0.1594315]
[1729216262933,0.000827,68008.0,68007.0,0.16597089]
[1729216264050,0.000827,68008.0,68007.0,0.16697089]
[1729216264265,0.000827,68008.0,68007.0,0.1669574]
[1729216264489,0.000827,68008.0,68007.0,0.1679574]
[1729216264967,0.000827,68008.0,68007.0,0.1659574]
[1729216265200,0.29682715,68008.0,68007.0,0.00653939]
[1729216265425,0.21579335,68008.0,68007.0,0.00653939]
[1729216265677,0.4006217,68008.0,68007.0,0.00653939]
[1729216265924,0.4006217,68008.0,68004.0,0.147049]
[1729216266173,0.0888366,68008.0,68007.0,0.00685661]
[1729216266427,0.0888366,68008.0,68007.0,0.001]
[1729216266653,0.2518784,68008.0,68007.0,0.001]
[1729216266884,0.2518784,68008.0,68007.0,0.00685661]
[1729216267150,0.16365306,68008.0,68007.0,0.00785661]
[1729216267359,0.16365306,68008.0,68007.0,0.00585661]
[1729216267575,0.16365306,68008.0,68007.0,0.00785661]
[1729216267793,0.45965321,68008.0,68007.0,0.002]
[1729216268008,0.16365306,68008.0,68007.0,0.15489961]
[1729216268218,0.40083817,68008.0,68007.0,0.002]
[1729216268425,0.40083817,68008.0,68007.0,0.00785661]
[1729216268639,0.31261862,68008.0,68007.0,0.00785661]
[1729216268869,0.14978615,68008.0,68007.0,0.00785661]
[1729216269082,0.31261927,68008.0,68007.0,0.002]
[1729216269750,0.14978615,68008.0,68007.0,0.002]
[1729216270202,0.32452341,68008.0,68007.0,0.002]
[1729216270430,0.48735849,68008.0,68007.0,0.002]
[1729216270650,0.48736039,68008.0,68007.0,0.002]
[1729216270876,0.39913462,68008.0,68007.0,0.002]
[1729216271314,0.39913462,68008.0,68007.0,0.00786943]
[1729216271535,0.30246848,68008.0,68007.0,0.002]
[1729216271751,0.23629954,68008.0,68007.0,0.00786943]
[1729216271971,0.39913059,68008.0,68007.0,0.002]
[1729216272209,0.39913059,68008.0,68007.0,0.00786943]
[1729216272422,0.48735585,68008.0,68007.0,0.001]
[1729216272651,0.40084246,68008.0,68007.0,0.00686943]
[1729216273079,0.04978615,68008.0,68007.0,0.00686943]
[1729216273290,0.04978615,68008.0,67998.0,0.294122]
[1729216273532,0.04411329,68004.0,68001.0,0.147055]
[1729216273761,0.19307244,68004.0,68000.0,0.36937079]
[1729216274020,0.19307244,68004.0,67998.0,0.294122]
[1729216274240,0.19307244,68004.0,68001.0,0.147055]
[1729216274460,0.19307244,68004.0,67998.0,0.294122]
[1729216274675,0.19307244,68004.0,68002.0,0.147054]
[1729216274936,0.19307244,68004.0,68001.0,0.001]
[1729216275151,0.14895915,68004.0,68001.0,0.001]
[1729216275367,0.19307244,68004.0,67999.0,0.294121]
[1729216275574,0.14895915,68004.0,68001.0,0.148055]
[1729216275785,0.14895915,68004.0,68002.0,0.147054]
[1729216275999,0.19307244,68004.0,68001.0,0.001]
[1729216276217,0.16637773,68002.0,67999.0,0.14706]
[1729216276432,0.14895915,68001.0,67999.0,0.14706]
[1729216276859,0.14895915,68001.0,68000.0,0.147058]
[1729216277970,0.04411329,68003.0,68002.0,0.147054]
[1729216279751,0.14895915,68003.0,68002.0,0.07699565]
[1729216279956,0.19306818,68003.0,68002.0,0.22404965]
[1729216280171,0.19506818,68003.0,68002.0,0.07799565]
[1729216280399,0.15295915,68003.0,68002.0,0.07899565]
[1729216281700,0.19706631,68003.0,68002.0,0.07899565]
[1729216281922,0.55439731,68003.0,68002.0,0.07899565]
[1729216282137,1.01527504,68003.0,68002.0,0.07899565]
[1729216282446,1.01527504,68003.0,68002.0,0.0731]
[1729216282648,1.01527504,68003.0,67993.0,0.19038004]
[1729216282649,0.564214,67994.0,67993.0,0.19038004]
[1729216282864,1.04236859,67994.0,67993.0,0.19038004]
[1729216283077,0.270073,67993.0,67988.0,0.00185]
[1729216283304,0.72944986,67993.0,67988.0,0.00185]
[1729216284378,0.73044986,67993.0,67992.0,5.894644]
[1729216284605,1.00374503,67993.0,67992.0,5.895644]
[1729216284828,1.00274503,67993.0,67992.0,5.894644]
[1729216285051,0.85378588,67993.0,67992.0,5.894644]
[1729216285270,0.84078588,67993.0,67992.0,5.893644]
[1729216285757,0.95085885,67993.0,67992.0,5.893644]
[1729216285995,0.84078588,67993.0,67992.0,5.893644]
[1729216286247,0.96485393,67993.0,67992.0,5.893644]
[1729216286488,0.98974503,67993.0,67992.0,5.893644]
[1729216286961,1.00374503,67993.0,67992.0,5.893644]
[1729216287216,0.32577686,67993.0,67992.0,5.894644]
[1729216287485,0.32577686,67993.0,67992.0,6.04172]
[1729216287486,0.17695915,67993.0,67992.0,6.04172]
[1729216287732,0.16295915,67993.0,67992.0,6.04072]
[1729216287975,0.17695915,67993.0,67992.0,6.04172]
[1729216288435,0.16295915,67993.0,67992.0,5.893644]
[1729216288658,0.16295915,67993.0,67992.0,6.04072]
[1729216288871,0.17595915,67993.0,67992.0,5.894644]
[1729216289100,0.013,67993.0,67992.0,6.04172]
[1729216289366,0.027,67993.0,67992.0,6.12362]
[1729216290085,0.027,67993.0,67992.0,6.12862]
[1729216290308,0.013,67993.0,67992.0,6.12762]
[1729216290541,0.026,67993.0,67992.0,6.12862]
[1729216291218,0.026,67993.0,67992.0,5.895644]
[1729216291219,0.32203215,67993.0,67992.0,5.895644]
[1729216291444,0.46728138,67993.0,67992.0,5.895644]
[1729216291666,0.42328594,67993.0,67992.0,5.895644]
[1729216291896,0.4892791,67993.0,67992.0,5.895644]
[1729216292117,0.17495915,67993.0,67992.0,5.895644]
[1729216292365,0.30903215,67993.0,67992.0,5.894644]
[1729216292633,0.34002507,67993.0,67992.0,5.893644]
[1729216292866,0.36202531,67993.0,67992.0,5.893644]
[1729216293085,0.83026713,67993.0,67992.0,5.894644]
[1729216293300,0.83026713,67993.0,67992.0,5.893644]
[1729216293301,0.81625402,67993.0,67992.0,5.893644]
[1729216293735,0.83025402,67993.0,67992.0,5.894644]
[1729216293957,0.81625402,67993.0,67992.0,5.893644]
[1729216294171,0.82796163,67993.0,67992.0,5.893644]
[1729216294386,0.82796163,67993.0,67992.0,5.894644]
[1729216294387,0.85596163,67993.0,67992.0,5.894644]
[1729216294825,0.72027853,67993.0,67992.0,5.894644]
[1729216295295,0.73427853,67993.0,67992.0,5.894644]
[1729216295758,0.72027853,67993.0,67992.0,5.894644]
[1729216296008,0.72027853,67993.0,67992.0,5.893644]
[1729216296238,0.73427853,67993.0,67992.0,5.893644]
[1729216296504,0.57384752,67993.0,67992.0,5.893644]
[1729216296963,0.58784752,67993.0,67992.0,5.893644]
[1729216297178,0.46298194,67993.0,67992.0,5.893644]
[1729216297600,0.38303215,67993.0,67992.0,5.893644]
[1729216298090,0.40516513,67993.0,67992.0,5.893644]
[1729216298321,0.41916513,67993.0,67992.0,5.893644]
[1729216298789,0.40516513,67993.0,67992.0,5.893644]
[1729216299253,0.41916513,67993.0,67992.0,5.893644]
[1729216300174,0.5519346,67993.0,67992.0,5.893644]
[1729216300926,0.5527626,67993.0,67992.0,5.893644]
[1729216301774,0.59669864,67993.0,67992.0,2.903644]
[1729216302488,0.5527626,67993.0,67992.0,2.903644]
[1729216303464,0.7226626,67993.0,67992.0,2.60477142]
[1729216303723,1.01977246,67993.0,67992.0,2.59689137]
[1729216304211,1.11603021,67993.0,67992.0,2.59689137]
[1729216304478,1.10203021,67993.0,67992.0,2.59689137]
[1729216304740,0.92417765,67993.0,67992.0,2.59689137]
[1729216304986,0.93817765,67993.0,67992.0,2.59701137]
[1729216305234,0.92417973,67993.0,67992.0,2.59701137]
[1729216305489,0.96331989,67993.0,67992.0,2.59701137]
[1729216305733,0.97731989,67993.0,67992.0,2.59701137]
[1729216305955,0.96331989,67993.0,67992.0,2.59701137]
[1729216306183,0.97731989,67993.0,67992.0,2.59701137]
[1729216306887,0.96331989,67993.0,67992.0,2.59701137]
[1729216307394,0.97731989,67993.0,67992.0,2.59701137]
[1729216307636,0.81515228,67993.0,67992.0,2.59701137]
[1729216307879,0.80115228,67993.0,67992.0,2.59701137]
[1729216308310,0.81515228,67993.0,67992.0,2.59701137]
[1729216308550,0.88101652,67993.0,67992.0,2.59701137]
[1729216308795,0.80115228,67993.0,67992.0,2.59701137]
[1729216309034,0.85301652,67993.0,67992.0,2.59701137]
[1729216309257,0.96325367,67993.0,67992.0,2.59701137]
[1729216309490,0.94925367,67993.0,67992.0,2.59701137]
[1729216309971,0.96325367,67993.0,67992.0,2.59701137]
[1729216310199,0.94925367,67993.0,67992.0,2.59701137]
[1729216310442,0.96325367,67993.0,67992.0,2.59701137]
[1729216311184,1.00029729,67993.0,67992.0,2.59701137]
[1729216311403,1.08812001,67993.0,67992.0,2.59701137]
[1729216311846,1.00029729,67993.0,67992.0,2.59701137]
[1729216312540,1.08812001,67993.0,67992.0,2.59701137]
[1729216313014,1.00029729,67993.0,67992.0,2.59701137]
[1729216313280,1.08812001,67993.0,67992.0,2.59866737]
[1729216313488,1.00029729,67993.0,67992.0,2.59866737]
[1729216313923,1.05919229,67993.0,67992.0,2.59866737]
[1729216314850,0.83393314,67993.0,67992.0,2.59866737]
[1729216315771,0.66403314,67993.0,67992.0,2.59866737]
[1729216318716,0.66416802,67993.0,67992.0,2.59866737]
[1729216319150,0.66416653,67993.0,67992.0,2.59866737]
[1729216321425,0.79601448,67993.0,67992.0,2.59866737]
[1729216321642,0.94497363,67993.0,67992.0,2.59866737]
[1729216322079,0.81312568,67993.0,67992.0,2.59866737]
[1729216322295,0.94497363,67993.0,67992.0,2.59866737]
[1729216322510,0.66416653,67993.0,67992.0,2.59866737]
[1729216322946,0.79601448,67993.0,67992.0,2.59866737]
[1729216323388,0.66416653,67993.0,67992.0,2.59866737]
[1729216323835,0.79613505,67993.0,67992.0,2.59866737]
[1729216324291,0.79613774,67993.0,67992.0,2.59866737]
[1729216324515,0.79616885,67993.0,67992.0,2.59866737]
[1729216324759,1.47099181,67993.0,67992.0,1.3864783]
[1729216324991,1.55938181,67993.0,67992.0,1.14083366]
[1729216325213,1.51188933,67993.0,67992.0,1.14083366]
[1729216325431,1.60832236,67993.0,67992.0,1.14083366]
[1729216325650,1.60832236,67993.0,67992.0,1.02317366]
[1729216325651,1.62637114,67993.0,67992.0,1.02317366]
[1729216325914,1.64037114,67993.0,67992.0,0.99375866]
[1729216326154,1.77470009,67993.0,67992.0,0.99375866]
[1729216326377,1.77470009,67993.0,67992.0,0.9667406]
[1729216326609,1.61237114,67993.0,67992.0,0.9667406]
[1729216326830,1.62637114,67993.0,67992.0,0.8490806]
[1729216327061,1.64037114,67993.0,67992.0,0.8196656]
[1729216327403,1.64037114,67993.0,67992.0,0.72330706]
[1729216327634,1.64037114,67993.0,67992.0,0.21358371]
[1729216327898,0.668702,67980.0,67979.0,0.22231279]
[1729216328109,0.668702,67980.0,67965.0,0.22231279]
[1729216328110,0.425004,67979.0,67965.0,0.22231279]
[1729216328345,0.58723878,67979.0,67965.0,0.22231279]
[1729216328800,0.73619793,67979.0,67965.0,0.22231279]
[1729216329482,0.89915708,67979.0,67965.0,0.22231279]
[1729216329925,0.91315708,67979.0,67965.0,0.22231279]
[1729216330789,0.91331792,67979.0,67965.0,0.22231279]
[1729216332110,0.92458974,67979.0,67965.0,0.22231279]
[1729216332318,1.01299974,67979.0,67978.0,1e-06]
[1729216332532,1.01299974,67979.0,67972.0,0.22231279]
[1729216332533,0.425017,67973.0,67972.0,0.22231279]
[1729216332745,0.9027495,67973.0,67972.0,0.22231279]
[1729216332956,0.247132,67966.0,67965.0,0.20592707]
[1729216333170,0.247132,67966.0,67958.0,0.22231279]
[1729216333171,0.270147,67959.0,67958.0,0.22231279]
[1729216333377,0.270147,67959.0,67958.0,0.21882655]
[1729216333378,0.7478795,67959.0,67958.0,0.21882655]
[1729216333587,0.247162,67952.0,67951.0,0.22231279]
[1729216333839,0.41912115,67952.0,67951.0,0.22231279]
[1729216334044,0.417329,67951.0,67947.0,0.0764]
[1729216334261,0.023,67948.0,67947.0,0.0764]
[1729216334494,0.17195915,67948.0,67947.0,0.0764]
[1729216334922,0.34083564,67948.0,67947.0,0.0764]
[1729216336027,0.35483564,67948.0,67947.0,0.0764]
[1729216336240,0.36883564,67948.0,67947.0,0.0764]
[1729216336469,0.22166464,67948.0,67947.0,0.0764]
[1729216336683,0.17695915,67948.0,67947.0,0.0764]
[1729216338187,0.32413015,67948.0,67947.0,0.0764]
[1729216338416,0.17695915,67948.0,67947.0,0.0764]
[1729216338877,0.32413015,67948.0,67947.0,0.0764]
[1729216340826,0.34713015,67948.0,67947.0,0.0764]
[1729216341516,0.19995915,67948.0,67942.0,0.001656]
[1729216341760,0.147182,67943.0,67942.0,0.081756]
[1729216341992,0.14895915,67943.0,67942.0,0.081756]
[1729216342701,0.3280678,67943.0,67942.0,0.081756]
[1729216342911,0.14121257,67943.0,67942.0,0.081756]
[1729216343531,0.15521257,67943.0,67942.0,0.081756]
[1729216344297,0.16921257,67943.0,67942.0,0.081756]
[1729216345361,0.31639457,67943.0,67942.0,0.081756]
[1729216345572,0.16921257,67943.0,67942.0,0.081756]
[1729216345789,0.31639457,67943.0,67942.0,0.081756]
[1729216346007,0.16921257,67943.0,67942.0,0.081756]
[1729216346254,0.41820443,67943.0,67942.0,0.081756]
[1729216346483,0.32539457,67943.0,67942.0,0.081756]
[1729216346700,0.33939457,67943.0,67942.0,0.081756]
[1729216347132,0.19221257,67943.0,67942.0,0.081756]
[1729216347371,0.17821257,67943.0,67942.0,0.081756]
[1729216347583,0.19221257,67943.0,67942.0,0.081756]
[1729216348014,0.25558603,67943.0,67942.0,0.081756]
[1729216348428,0.40276803,67943.0,67942.0,0.081756]
[1729216349788,0.40276803,67943.0,67942.0,0.001656]
[1729216350477,0.16921257,67943.0,67942.0,0.001656]
[1729216350706,0.16921257,67943.0,67942.0,0.80343052]
[1729216350921,0.16921257,67943.0,67942.0,0.60344489]
[1729216350922,0.028,67943.0,67942.0,0.60344489]
[1729216351143,0.22231279,67957.0,67956.0,0.408054]
[1729216351373,0.37127194,67957.0,67956.0,0.408054]
[1729216351601,0.14895915,67957.0,67956.0,0.57443173]
[1729216352049,0.14895915,67957.0,67956.0,0.42727773]
[1729216352272,0.14895915,67957.0,67956.0,0.57443173]
[1729216352948,0.14895915,67957.0,67956.0,0.42727773]
[1729216352949,0.15995915,67957.0,67956.0,0.42727773]
[1729216353168,0.15995915,67957.0,67956.0,0.2609]
[1729216353381,0.16995915,67957.0,67956.0,0.2609]
[1729216353843,0.15995915,67957.0,67956.0,0.2609]
[1729216354289,0.14895915,67957.0,67956.0,0.2609]
[1729216354752,0.18965227,67957.0,67956.0,0.2619]
[1729216354962,0.15995915,67957.0,67956.0,0.2619]
[1729216355179,0.14895915,67957.0,67956.0,0.2609]
[1729216355626,0.17595915,67957.0,67956.0,0.2629]
[1729216356067,0.16195915,67957.0,67956.0,0.0811]
[1729216356285,0.32311015,67957.0,67956.0,0.0821]
[1729216356919,0.32311015,67957.0,67956.0,0.002]
[1729216356920,0.34611015,67957.0,67956.0,0.002]
[1729216357146,0.44611015,67957.0,67956.0,0.002]
[1729216357614,0.71802624,67957.0,67956.0,0.002]
[1729216357833,0.60825343,67957.0,67956.0,0.002]
[1729216358062,0.59706158,67957.0,67942.0,0.22396879]
[1729216358279,0.170182,67943.0,67942.0,0.22396879]
[1729216358944,0.170182,67943.0,67942.0,0.001656]
[1729216359628,0.46068594,67943.0,67942.0,0.002656]
[1729216359841,0.57352758,67943.0,67942.0,0.002656]
[1729216360279,0.83990531,67943.0,67942.0,0.002656]
[1729216360497,1.08993517,67943.0,67942.0,0.002656]
[1729216360735,1.00209677,67943.0,67942.0,0.002656]
[1729216360955,0.67352758,67943.0,67942.0,0.002656]
[1729216361174,0.92359421,67943.0,67942.0,0.002656]
[1729216361411,0.69965946,67943.0,67942.0,0.002656]
[1729216361621,0.61066492,67943.0,67942.0,0.002656]
[1729216362077,0.27457746,67943.0,67942.0,0.080656]
[1729216362737,0.27457746,67943.0,67942.0,0.22784]
[1729216364245,0.26057746,67943.0,67942.0,0.080656]
[1729216364472,0.28803521,67943.0,67942.0,0.080656]
[1729216364681,0.29903521,67943.0,67942.0,0.080656]
[1729216364897,0.28503521,67943.0,67942.0,0.079656]
[1729216365318,0.29603521,67943.0,67942.0,0.079656]
[1729216366236,0.44321721,67943.0,67942.0,0.079656]
[1729216367650,0.51019453,67943.0,67942.0,0.001656]
[1729216367888,0.41257622,67943.0,67942.0,0.001656]
[1729216368145,0.3685989,67943.0,67942.0,0.001656]
[1729216368396,0.43456488,67943.0,67942.0,0.001656]
[1729216368913,0.50143907,67943.0,67942.0,0.001656]
[1729216369400,0.68593964,67943.0,67942.0,0.001656]
[1729216370139,0.597985,67943.0,67942.0,0.001656]
[1729216370632,0.70810697,67943.0,67942.0,0.001656]
[1729216371110,0.597985,67943.0,67942.0,0.001656]
[1729216371341,0.8412237,67943.0,67942.0,0.001656]
[1729216371566,0.73109561,67943.0,67942.0,0.001656]
[1729216372087,0.59806964,67943.0,67942.0,0.001656]
[1729216372337,0.70819794,67943.0,67942.0,0.001656]
[1729216372576,0.42788764,67943.0,67942.0,0.001656]
[1729216372827,0.42871664,67943.0,67942.0,0.001656]
[1729216373058,0.53885947,67943.0,67942.0,0.01162199]
[1729216373325,0.63806259,67943.0,67942.0,0.001656]
[1729216373553,0.67510176,67943.0,67942.0,0.001656]
[1729216373793,0.69810176,67943.0,67942.0,0.001656]
[1729216374295,0.59889864,67943.0,67942.0,0.001656]
[1729216374774,0.58789864,67943.0,67942.0,0.001656]
[1729216375032,0.59089864,67943.0,67942.0,0.001656]
[1729216375525,0.60489864,67943.0,67942.0,0.001656]
[1729216376695,0.59089864,67943.0,67942.0,0.001656]
[1729216376966,0.73653261,67943.0,67942.0,0.001656]
[1729216378420,0.43401198,67943.0,67942.0,0.078356]
[1729216379143,0.43401198,67943.0,67942.0,0.08833139]
[1729216379380,0.54428652,67943.0,67942.0,0.08833139]
[1729216379625,0.434106,67943.0,67942.0,0.08833139]
[1729216380118,0.64507332,67943.0,67942.0,0.08833139]
[1729216380372,0.53489124,67943.0,67942.0,0.08833139]
[1729216380602,0.62303141,67943.0,67942.0,0.08833139]
[1729216380835,0.434106,67943.0,67942.0,0.08833139]
[1729216381071,0.37328873,67943.0,67942.0,0.40689312]
[1729216381327,0.12245628,67943.0,67942.0,0.24051539]
[1729216382322,0.10845628,67943.0,67942.0,0.24051539]
[1729216382573,0.10345628,67943.0,67942.0,0.24051539]
[1729216383041,0.11245628,67943.0,67942.0,0.24051539]
[1729216384293,0.11245628,67943.0,67942.0,0.24251539]
[1729216385010,0.018829,67943.0,67942.0,0.46318842]
[1729216385720,0.009829,67943.0,67942.0,0.46318842]
[1729216385959,0.009829,67943.0,67942.0,0.46418842]
[1729216385960,0.000829,67943.0,67942.0,0.46418842]
[1729216386191,0.000829,67943.0,67942.0,0.46618842]
[1729216386192,0.001829,67943.0,67942.0,0.46618842]
[1729216386676,0.001829,67943.0,67942.0,0.46518842]
[1729216386909,0.002829,67943.0,67942.0,0.48597993]
[1729216387118,0.002829,67943.0,67942.0,0.49097993]
[1729216387334,0.22231279,67955.0,67954.0,0.241758]
[1729216387555,0.22231279,67955.0,67954.0,0.41313573]
[1729216387773,0.02,67956.0,67955.0,0.241756]
[1729216387995,0.02,67956.0,67955.0,0.44231486]
[1729216388214,0.02,67956.0,67955.0,0.47183829]
[1729216388432,0.000829,67958.0,67957.0,0.424951]
[1729216388667,0.000829,67958.0,67957.0,0.43730986]
[1729216388882,0.000829,67958.0,67957.0,0.44700352]
[1729216389778,0.001829,67958.0,67957.0,0.45000352]
[1729216390025,0.001829,67958.0,67957.0,0.46100352]
[1729216391143,0.001829,67958.0,67957.0,0.62738125]
[1729216391395,0.001829,67958.0,67957.0,0.47500352]
[1729216391396,0.002829,67958.0,67957.0,0.47500352]
[1729216392270,0.002829,67958.0,67957.0,0.32085252]
[1729216392271,0.15178815,67958.0,67957.0,0.32085252]
[1729216392511,0.15178815,67958.0,67957.0,0.12529366]
[1729216392753,0.15178815,67958.0,67957.0,0.27244466]
[1729216393222,0.14978815,67958.0,67957.0,0.234751]
[1729216393665,0.14978815,67958.0,67957.0,0.236751]
[1729216393666,0.000829,67958.0,67957.0,0.236751]